bitfinex-derivatives/quotes_SOLF0:USTF0_20250613
["timestamp","ask_amount","ask_price","bid_price","bid_amount"]
[1749781050251,43.49123656,142.47,142.45,4.05393579]
[1749781051248,7.0145,142.46,142.45,0.82243579]
[1749781051744,19.37248749,142.46,142.45,3.579e-05]
[1749781052142,7.015,142.45,142.44,7.711e-05]
[1749781052345,409.97826963,142.45,142.35,94.64493189]
[1749781052640,12.35798749,142.4,142.35,94.64493189]
[1749781052839,43.44,142.39,142.35,94.64493189]
[1749781053240,7.0191,142.37,142.36,0.04972547]
[1749781053438,0.05253497,142.38,142.36,0.04972547]
[1749781053851,7.07103497,142.38,142.36,0.04972547]
[1749781054147,0.05253497,142.38,142.36,0.04972547]
[1749781054346,0.05253497,142.38,142.37,7.0189]
[1749781054549,0.05253497,142.38,142.36,4.04972547]
[1749781054550,43.44,142.47,142.36,11.06972547]
[1749781054747,43.44,142.47,142.39,12.35798749]
[1749781055051,43.44,142.47,142.46,7.0145]
[1749781055348,43.44,142.5,142.48,7.0133]
[1749781055548,43.48646455,142.5,142.48,0.04878572]
[1749781055944,43.48646455,142.5,142.48,7.06178572]
[1749781056250,43.48646455,142.5,142.48,0.04878572]
[1749781056844,43.48646455,142.5,142.49,7.013]
[1749781057048,0.04646455,142.5,142.48,0.04878572]
[1749781057348,7.05906455,142.5,142.48,0.04878572]
[1749781057543,0.04646455,142.5,142.48,0.04878572]
[1749781057849,43.44,142.53,142.48,0.04878572]
[1749781058054,43.44,142.57,142.48,12.40677321]
[1749781058344,7.0102,142.55,142.51,7.0117]
[1749781058546,43.44,142.57,142.48,12.35798749]
[1749781058940,43.44,142.57,142.51,0.05382951]
[1749781058941,0.05367469,142.54,142.51,0.05382951]
[1749781059138,6.44014952,142.63,142.51,0.05382951]
[1749781059352,7.0076,142.6,142.55,7.0098]
[1749781059645,7.0076,142.6,142.52,12.35798749]
[1749781059849,50.4467,142.62,142.58,7.0085]
[1749781060046,43.44,142.62,142.54,12.35798749]
[1749781060350,0.04385751,142.59,142.57,0.04733939]
[1749781060543,43.44,142.58,142.57,0.04733939]
[1749781060850,49.30450445,142.58,142.57,0.00413939]
[1749781061151,56.31310445,142.58,142.57,0.00413939]
[1749781061346,49.30440383,142.58,142.45,43.44]
[1749781061650,5.86440383,142.57,142.45,43.44]
[1749781061853,12.35798749,142.57,142.47,12.35798749]
[1749781062055,43.44,142.58,142.49,12.35798749]
[1749781062357,0.04900494,142.55,142.52,0.04842959]
[1749781062543,43.44,142.58,142.52,4.74272959]
[1749781063246,12.35798749,142.57,142.52,0.04842959]
[1749781063448,0.04219196,142.56,142.52,0.04842959]
[1749781063847,7.011,142.53,142.52,0.04842959]
[1749781064653,43.44,142.54,142.52,0.04842959]
[1749781064854,0.04219196,142.56,142.52,0.04842959]
[1749781065455,0.04219196,142.56,142.53,7.0109]
[1749781065652,0.04219196,142.56,142.52,0.04842959]
[1749781066056,43.44,142.61,142.52,0.04842959]
[1749781066260,55.79798749,142.61,142.5,43.44]
[1749781066452,12.35798749,142.58,142.5,43.44]
[1749781066653,43.44,142.57,142.51,7.012]
[1749781066953,12.35798749,142.56,142.5,4.0]
[1749781067153,12.35798749,142.56,142.52,0.04504096]
[1749781067753,7.0108,142.54,142.52,0.04504096]
[1749781068260,7.0102,142.55,142.52,0.04504096]
[1749781068751,19.36758749,142.56,142.52,7.05654096]
[1749781068959,43.44,142.57,142.52,0.04504096]
[1749781069152,12.35798749,142.56,142.52,0.04504096]
[1749781069353,7.0111,142.53,142.52,0.04504096]
[1749781069657,43.42,142.53,142.52,0.04504096]
[1749781071755,7.02,142.53,142.35,94.64493189]
[1749781072055,12.35798749,142.5,142.4,2.3319]
[1749781072263,19.37218749,142.47,142.4,2.3319]
[1749781072452,43.42,142.46,142.4,2.3319]
[1749781072852,0.04504096,142.44,142.42,0.04950669]
[1749781073261,12.35798749,142.43,142.42,0.04950669]
[1749781073961,12.35798749,142.43,142.42,4.0]
[1749781074158,12.35798749,142.43,142.33,4.6261]
[1749781074361,12.35798749,142.39,142.37,7.0186]
[1749781074961,0.0469335,142.39,142.38,7.0185]
[1749781075853,0.0469335,142.39,142.38,11.0185]
[1749781076257,0.0469335,142.39,142.38,4.0]
[1749781076450,12.40492099,142.39,142.38,4.0]
[1749781077060,19.42292099,142.39,142.38,4.0]
[1749781077855,12.40492099,142.39,142.38,4.0]
[1749781078253,43.44,142.42,142.38,4.0]
[1749781078651,447.34,142.45,142.38,4.0]
[1749781078954,454.355,142.45,142.38,6.2822]
[1749781079155,466.71298749,142.45,142.38,6.2822]
[1749781079361,0.04761415,142.43,142.4,0.0487496]
[1749781079861,12.40560164,142.43,142.4,0.0487496]
[1749781080364,12.35798749,142.41,142.4,0.0487496]
[1749781080667,55.73798749,142.41,142.4,0.0487496]
[1749781080866,68.61569922,142.41,142.4,0.0487496]
[1749781081067,43.38,142.41,142.4,0.0487496]
[1749781081567,55.73798749,142.41,142.4,0.0487496]
[1749781082070,43.38,142.41,142.4,0.0487496]
[1749781082365,0.04761415,142.43,142.4,0.0487496]
[1749781082666,12.40560164,142.43,142.4,0.0487496]
[1749781082857,12.35798749,142.41,142.4,0.0487496]
[1749781083059,19.37498749,142.41,142.4,0.0487496]
[1749781083257,12.35798749,142.42,142.4,0.0487496]
[1749781083764,0.04761415,142.43,142.4,0.0487496]
[1749781084165,43.38,142.44,142.4,0.0487496]
[1749781084564,43.4,142.47,142.4,0.0487496]
[1749781084764,43.4,142.47,142.43,7.0158]
[1749781084964,12.35798749,142.44,142.39,2.4081]
[1749781085167,43.4,142.43,142.4,0.04624583]
[1749781086171,55.75798749,142.43,142.4,0.04624583]
[1749781086878,43.4,142.43,142.4,0.04624583]
[1749781088272,43.4,142.43,142.4,7.06354583]
[1749781088867,6.45149979,142.51,142.4,0.04624583]
[1749781089070,412.77975942,142.52,142.38,4.0]
[1749781089071,61.64181289,142.5,142.44,0.04741149]
[1749781089267,12.35798749,142.46,142.44,0.04741149]
[1749781089473,55.75798749,142.46,142.44,0.04741149]
[1749781090270,43.4,142.46,142.44,0.04741149]
[1749781090472,156.595,142.45,142.44,1.149e-05]
[1749781090661,155.45679722,142.45,142.38,4.0]
[1749781090866,12.35798749,142.4,142.38,4.0]
[1749781091067,55.75798749,142.4,142.38,4.0]
[1749781091668,55.80539898,142.4,142.38,4.05151593]
[1749781093168,55.80539898,142.4,142.38,11.06961593]
[1749781093574,55.80539898,142.4,142.38,4.05151593]
[1749781094075,43.44741149,142.4,142.38,4.05151593]
[1749781095674,43.44741149,142.4,142.38,11.06981593]
[1749781095877,43.44741149,142.4,142.38,4.05151593]
[1749781096078,6.44919477,142.48,142.38,4.05151593]
[1749781096371,43.4,142.45,142.39,2.1923]
[1749781096573,43.4,142.49,142.4,58.02198749]
[1749781096780,43.4,142.49,142.42,12.35798749]
[1749781096968,43.4,142.55,142.44,12.35798749]
[1749781097176,55.75798749,142.57,142.48,0.0541145]
[1749781097479,12.35798749,142.53,142.51,0.0452202]
[1749781097667,55.75798749,142.53,142.51,0.04752147]
[1749781098769,43.4,142.53,142.51,0.04752147]
[1749781099966,12.35798749,142.57,142.51,0.04752147]
[1749781100170,43.4,142.56,142.51,0.04752147]
[1749781101272,7.011,142.54,142.51,0.04752147]
[1749781101887,43.4,142.56,142.51,0.04752147]
[1749781102281,7.0094,142.57,142.52,7.0113]
[1749781102476,7.0094,142.57,142.53,0.05066087]
[1749781102690,43.38,142.59,142.53,0.05066087]
[1749781102889,7.0089,142.58,142.54,7.0102]
[1749781103292,43.38,142.59,142.53,0.05066087]
[1749781103491,7.0078,142.6,142.55,7.0096]
[1749781103682,43.38,142.62,142.56,0.04861045]
[1749781104391,43.38,142.62,142.56,2.33991045]
[1749781104693,43.38,142.62,142.59,7.008]
[1749781104892,43.38,142.62,142.59,0.04432613]
[1749781106595,43.38,142.62,142.59,7.05202613]
[1749781106793,43.38,142.62,142.59,0.04432613]
[1749781107096,55.67798749,142.65,142.59,0.04432613]
[1749781107299,43.32,142.65,142.59,0.04432613]
[1749781108289,404.12,142.67,142.64,7.0053]
[1749781108494,43.32,142.68,142.64,7.0053]
[1749781108495,43.32,142.68,142.64,0.04482191]
[1749781108890,43.32,142.68,142.65,7.0051]
[1749781109095,43.32,142.68,142.64,4.04482191]
[1749781109493,50.3238,142.68,142.64,4.04482191]
[1749781109693,43.32,142.68,142.64,4.04482191]
[1749781110098,43.32,142.71,142.64,4.04482191]
[1749781110299,43.32,142.71,142.65,4.5442]
[1749781110701,12.35798749,142.67,142.64,4.04482191]
[1749781110894,12.35798749,142.65,142.64,3.99741042]
[1749781111198,55.67798749,142.65,142.55,2.3111]
[1749781111493,55.67798749,142.65,142.37,62.0]
[1749781111494,12.35798749,142.57,142.49,2.1847]
[1749781111692,12.35798749,142.55,142.49,2.1847]
[1749781111896,12.35798749,142.62,142.49,14.54268749]
[1749781112092,7.0085,142.59,142.54,7.0106]
[1749781112398,43.32,142.61,142.51,12.35798749]
[1749781112599,43.32,142.61,142.55,7.0099]
[1749781112796,43.32,142.61,142.53,12.35798749]
[1749781113000,43.32,142.61,142.56,0.04885331]
[1749781113801,43.32,142.61,142.56,4.04885331]
[1749781114301,199.7058,142.64,142.56,4.04885331]
[1749781114602,192.7,142.64,142.59,0.04660093]
[1749781115295,199.7061,142.64,142.59,7.05470093]
[1749781115497,192.7,142.64,142.59,0.04660093]
[1749781115897,199.7057,142.64,142.6,7.0073]
[1749781116098,192.7,142.64,142.6,7.0073]
[1749781116497,199.706,142.64,142.59,0.04660093]
[1749781116695,43.3,142.67,142.59,0.04660093]
[1749781116903,43.3,142.67,142.62,0.04768103]
[1749781117499,43.3,142.67,142.64,7.0053]
[1749781117700,43.3,142.7,142.62,0.04768103]
[1749781118001,43.3,142.7,142.65,0.05247341]
[1749781119005,403.76,142.72,142.65,0.05247341]
[1749781119304,43.3,142.73,142.65,12.4104609]
[1749781119506,43.3,142.73,142.68,0.04859823]
[1749781120398,43.3,142.73,142.69,7.0032]
[1749781120598,43.3,142.73,142.68,0.04859823]
[1749781120800,12.35798749,142.7,142.63,7.0058]
[1749781120997,12.35798749,142.68,142.63,7.0058]
[1749781121201,55.65798749,142.68,142.62,2.3726]
[1749781121599,43.3,142.68,142.62,2.3726]
[1749781121803,0.04859823,142.66,142.64,0.04775827]
[1749781123208,7.0052,142.65,142.64,0.00293636]
[1749781123409,12.40658572,142.66,142.64,0.00293636]
[1749781123609,0.04859823,142.66,142.64,0.00293636]
[1749781123805,43.3,142.73,142.64,0.00293636]
[1749781124001,43.3,142.73,142.63,12.35798749]
[1749781124204,43.3,142.73,142.65,12.35798749]
[1749781124404,43.3,142.73,142.66,6.8139]
[1749781124600,43.3,142.73,142.66,50.1139]
[1749781124811,0.04482191,142.71,142.68,0.04726832]
[1749781125108,43.3,142.76,142.68,0.04726832]
[1749781126210,43.3,142.76,142.72,7.0013]
[1749781126514,43.3,142.76,142.73,0.05198939]
[1749781128207,43.28,142.79,142.73,0.05198939]
[1749781128407,50.2784,142.79,142.75,0.0489151]
[1749781129709,43.28,142.79,142.75,0.0489151]
[1749781129905,12.35798749,142.78,142.75,0.0489151]
[1749781130416,6.9998,142.76,142.75,0.0489151]
[1749781131409,6.9998,142.76,142.75,0.00031687]
[1749781131604,7.0013,142.73,142.72,4.0]
[1749781131807,12.35798749,142.76,142.72,4.0]
[1749781131808,43.28,142.75,142.72,4.0]
[1749781132207,7.0013,142.73,142.72,4.0]
[1749781132805,7.0017,142.72,142.71,0.04608238]
[1749781133009,12.35798749,142.71,142.7,0.05298414]
[1749781133204,55.63798749,142.71,142.69,0.0445666]
[1749781133411,55.68447022,142.71,142.62,4.5146]
[1749781133612,0.04765968,142.68,142.65,0.04832772]
[1749781133919,7.0045,142.67,142.65,0.04832772]
[1749781134113,0.04765968,142.68,142.65,0.04832772]
[1749781134417,7.0045,142.67,142.65,0.04832772]
[1749781134613,50.2845,142.67,142.65,4.04832772]
[1749781134813,43.28,142.67,142.65,4.04832772]
[1749781136613,43.26,142.73,142.65,16.40631521]
[1749781136815,43.26,142.77,142.69,12.35798749]
[1749781137618,43.26,142.77,142.72,0.0472897]
[1749781138610,559.07601418,142.83,142.75,7.0001]
[1749781138611,50.2582,142.8,142.75,7.0001]
[1749781138812,50.2582,142.8,142.76,0.05141632]
[1749781139418,43.26,142.8,142.76,7.05111632]
[1749781139814,43.26,142.8,142.78,6.9985]
[1749781140016,43.26,142.8,142.76,0.05141632]
[1749781140318,6.9971,142.82,142.78,6.9985]
[1749781140531,6.37601418,142.85,142.79,0.04432522]
[1749781140823,43.24,142.87,142.8,12.35798749]
[1749781141119,43.24,142.87,142.82,0.04711964]
[1749781141322,5.90421654,142.86,142.82,0.04711964]
[1749781141524,5.89983202,142.85,142.82,0.04711964]
[1749781141725,453.01601418,142.9,142.82,0.04711964]
[1749781141923,5.89325965,142.89,142.82,12.40510713]
[1749781142223,5.89674983,142.88,142.82,12.40510713]
[1749781142520,5.89628458,142.87,142.82,0.04711964]
[1749781142723,446.64,142.9,142.82,0.04711964]
[1749781142724,446.64,142.9,142.82,12.40510713]
[1749781142929,6.37601418,142.94,142.86,12.35798749]
[1749781143130,5.90344739,142.93,142.89,7.04099297]
[1749781143319,5.90344739,142.92,142.89,0.04779297]
[1749781143626,43.24,142.96,142.89,0.04779297]
[1749781143827,5.90160971,142.95,142.89,0.04779297]
[1749781144326,43.24,142.96,142.89,0.04779297]
[1749781144527,5.89528951,142.95,142.91,6.9921]
[1749781144725,5.89528951,142.95,142.92,0.05332848]
[1749781145122,50.2302,142.96,142.92,0.05332848]
[1749781145323,43.24,142.96,142.92,0.05332848]
[1749781145524,5.89058519,142.95,142.92,0.05332848]
[1749781145720,12.35798749,142.93,142.82,43.24]
[1749781145926,12.35798749,142.89,142.79,45.6459]
[1749781146427,43.22,142.88,142.79,45.6459]
[1749781146621,43.22,142.88,142.85,6.9952]
[1749781146816,192.36,142.92,142.84,12.35798749]
[1749781147022,0.05130865,142.89,142.87,0.04928917]
[1749781147923,0.05130865,142.89,142.88,6.9939]
[1749781149220,0.05130865,142.89,142.87,0.04928917]
[1749781149615,7.04510865,142.89,142.87,0.04928917]
[1749781150529,6.9939,142.88,142.87,0.04928917]
[1749781150724,43.22,142.88,142.81,3.9]
[1749781150924,43.22,142.88,142.82,6.9965]
[1749781151124,43.22,142.88,142.81,3.9]
[1749781151840,0.05072951,142.86,142.83,0.05326733]
[1749781152025,43.22,142.91,142.85,12.35798749]
[1749781152224,43.22,142.92,142.85,12.35798749]
[1749781152622,43.22,142.92,142.87,6.9941]
[1749781152823,43.22,142.92,142.85,12.35798749]
[1749781153128,0.04816409,142.9,142.87,0.04664834]
[1749781153721,0.04816409,142.9,142.89,6.9934]
[1749781153928,43.22,142.95,142.88,12.35798749]
[1749781154232,43.22,142.95,142.89,4.0]
[1749781154626,17.04072613,143.08,142.89,4.0]
[1749781154627,6.37601418,143.06,142.94,12.35798749]
[1749781154827,5.87299047,143.05,142.99,0.04504655]
[1749781155028,5.87299047,143.05,143.0,6.988]
[1749781155230,5.87299047,143.05,142.99,0.04504655]
[1749781155432,12.35798749,143.06,142.99,0.04504655]
[1749781155631,12.35798749,143.06,143.01,6.9872]
[1749781155830,12.35798749,143.06,143.02,0.05148231]
[1749781156227,12.35798749,143.06,143.02,7.03848231]
[1749781156634,19.34298749,143.07,143.03,6.9862]
[1749781157035,43.22,143.08,143.02,0.05148231]
[1749781157238,18.21160895,143.07,143.02,0.05148231]
[1749781157538,43.22,143.08,143.02,0.05148231]
[1749781158341,43.22,143.08,143.04,6.9857]
[1749781158840,50.2043,143.08,143.04,6.9857]
[1749781159438,6.9847,143.07,143.03,6.9864]
[1749781159637,43.22,143.08,143.02,0.05148231]
[1749781160032,50.2045,143.08,143.02,0.05148231]
[1749781160234,43.22,143.08,143.02,0.05148231]
[1749781160834,43.22,143.08,143.02,12.4094698]
[1749781161135,43.18,143.11,143.02,55.5894698]
[1749781161338,43.18,143.11,143.05,0.04817399]
[1749781161636,12.35798749,143.09,143.05,0.04817399]
[1749781162139,12.35798749,143.07,142.96,43.18]
[1749781162330,43.18,143.06,142.96,43.18]
[1749781162529,43.18,143.06,143.02,6.987]
[1749781162739,43.18,143.06,142.97,12.35798749]
[1749781163041,43.18,143.06,142.99,6.9885]
[1749781163042,12.35798749,143.05,142.99,6.9885]
[1749781163239,0.04488446,143.03,143.01,0.05280797]
[1749781163437,43.18,143.02,142.98,6.9887]
[1749781164139,43.18,143.02,142.93,43.18]
[1749781164432,6.9893,142.98,142.96,0.05135385]
[1749781164637,0.04616927,142.99,142.96,0.05135385]
[1749781165535,43.18,142.98,142.96,0.05135385]
[1749781166129,19.34748749,142.97,142.96,0.00124221]
[1749781166331,161.23798749,142.97,142.89,4.0]
[1749781166530,12.35798749,142.91,142.89,4.0]
[1749781166835,43.12,142.9,142.81,3.9]
[1749781167035,12.35798749,142.86,142.81,3.9]
[1749781167342,12.35798749,142.84,142.82,0.0499681]
[1749781167549,43.14,142.83,142.82,0.0499681]
[1749781167742,50.1364,142.83,142.82,0.0499681]
[1749781168445,6.9991,142.78,142.7,55.49798749]
[1749781168644,6.9991,142.78,142.7,43.14]
[1749781168941,12.35798749,142.77,142.71,7.0019]
[1749781169138,12.35798749,142.77,142.7,4.0]
[1749781169339,12.35798749,142.75,142.7,4.0]
[1749781169547,50.19454068,142.74,142.71,0.05125741]
[1749781169750,43.19364068,142.74,142.71,0.05125741]
[1749781171549,7.0013,142.73,142.71,0.05125741]
[1749781171748,55.55162817,142.74,142.71,0.05125741]
[1749781172046,43.19364068,142.74,142.71,0.05125741]
[1749781172242,43.19364068,142.74,142.73,7.0013]
[1749781172435,0.05364068,142.74,142.73,7.0013]
[1749781172840,4.068e-05,142.74,142.73,7.0013]
[1749781173648,4.068e-05,142.74,142.71,4.56905741]
[1749781173649,4.068e-05,142.74,142.72,7.0014]
[1749781173842,4.068e-05,142.74,142.71,4.56905741]
[1749781174149,4.068e-05,142.74,142.73,7.0013]
[1749781174843,4.068e-05,142.74,142.71,4.56905741]
[1749781175046,4.068e-05,142.74,142.71,0.05125741]
[1749781175544,43.16,142.73,142.71,0.05125741]
[1749781176651,55.51798749,142.73,142.71,0.05125741]
[1749781177051,43.16,142.73,142.71,0.05125741]
[1749781177448,55.51798749,142.73,142.71,0.05125741]
[1749781177953,43.16,142.73,142.71,0.05125741]
[1749781178648,55.51798749,142.73,142.71,0.05125741]
[1749781179056,7.0018,142.72,142.71,0.05125741]
[1749781179647,156.0018,142.72,142.71,5.741e-05]
[1749781180247,168.35978749,142.72,142.71,5.741e-05]
[1749781181153,161.35798749,142.72,142.71,5.741e-05]
[1749781181848,149.0,142.72,142.71,5.741e-05]
[1749781182148,43.16,142.73,142.71,5.741e-05]
[1749781182551,7.0018,142.72,142.71,5.741e-05]
[1749781183058,19.35978749,142.72,142.71,5.741e-05]
[1749781183248,7.0023,142.71,142.7,5.741e-05]
[1749781183448,19.35798749,142.72,142.68,0.0001]
[1749781183654,12.35798749,142.69,142.68,0.0001]
[1749781183857,55.55798749,142.69,142.68,0.0001]
[1749781184058,62.56118749,142.69,142.68,0.0001]
[1749781184852,7.0037,142.68,142.67,7.692e-05]
[1749781185158,149.06,142.68,142.58,7.0083]
[1749781185349,12.35798749,142.61,142.56,2.4224]
[1749781185552,12.35798749,142.61,142.58,4.0]
[1749781185553,43.2,142.6,142.58,4.0]
[1749781185949,0.05279652,142.6,142.59,7.0081]
[1749781186153,43.2,142.67,142.59,12.35798749]
[1749781186560,43.2,142.67,142.61,7.0068]
[1749781186750,43.2,142.67,142.59,12.35798749]
[1749781187058,446.62,142.74,142.62,0.04769351]
[1749781187256,458.97798749,142.74,142.63,12.35798749]
[1749781187463,12.35798749,142.72,142.62,2.2027]
[1749781187651,12.35798749,142.7,142.62,2.2027]
[1749781187855,7.0041,142.68,142.62,2.2027]
[1749781188060,43.2,142.69,142.62,2.2027]
[1749781188264,0.04864576,142.66,142.64,0.04820565]
[1749781188763,43.22,142.65,142.64,0.04820565]
[1749781189161,50.2252,142.65,142.64,0.04820565]
[1749781189561,7.0068,142.62,142.58,6.2027]
[1749781189862,43.22,142.65,142.58,6.2027]
[1749781189863,43.22,142.65,142.58,4.0]
[1749781190164,55.57798749,142.65,142.6,7.0076]
[1749781190356,43.22,142.65,142.58,4.0]
[1749781190554,0.0504792,142.63,142.6,0.04488768]
[1749781190759,0.0504792,142.63,142.61,7.0069]
[1749781191157,0.0504792,142.63,142.6,0.04488768]
[1749781191360,0.0504792,142.63,142.62,7.0067]
[1749781191661,43.22,142.65,142.6,0.04488768]
[1749781192465,0.05143274,142.64,142.6,0.04488768]
[1749781192655,43.22,142.71,142.63,12.35798749]
[1749781193564,0.0517769,142.68,142.66,0.05291307]
[1749781193756,43.22,142.71,142.66,0.05291307]
[1749781193962,446.64,142.74,142.66,2.38801307]
[1749781194159,446.64,142.74,142.67,12.35798749]
[1749781194563,446.64,142.74,142.71,7.0018]
[1749781194766,446.64,142.74,142.68,2.3343]
[1749781194964,446.68612535,142.74,142.71,0.04877287]
[1749781195464,43.26612535,142.74,142.71,0.04877287]
[1749781195659,0.04612535,142.74,142.71,0.04877287]
[1749781195860,43.22,142.77,142.71,0.04877287]
[1749781195861,43.22,142.77,142.71,12.40676036]
[1749781196062,43.22,142.79,142.73,12.35798749]
[1749781196263,43.22,142.79,142.74,2.3737]
[1749781197057,410.5177,142.81,142.75,0.05006394]
[1749781197058,403.52,142.81,142.75,0.05006394]
[1749781197465,410.5174,142.81,142.77,6.9988]
[1749781197970,403.52,142.81,142.75,0.05006394]
[1749781199168,403.52,142.81,142.75,4.05006394]
[1749781199667,403.52,142.81,142.79,6.9983]
[1749781199862,403.52,142.81,142.79,7.05140334]
[1749781200164,43.16,142.82,142.79,0.05310334]
[1749781200367,43.14,142.85,142.79,0.05310334]
[1749781200770,43.14,142.85,142.75,4.0]
[1749781200771,12.35798749,142.81,142.75,4.0]
[1749781200969,12.35798749,142.77,142.75,4.0]
[1749781201268,199.1598,142.76,142.75,3.94916922]
[1749781204056,192.16,142.76,142.75,3.94916922]
[1749781205262,199.1598,142.76,142.75,3.94916922]
[1749781205659,192.16,142.76,142.75,3.94916922]
[1749781205970,192.16,142.76,142.75,10.94946922]
[1749781206265,43.14,142.76,142.75,3.94916922]
[1749781207963,43.14,142.76,142.74,0.04849741]
[1749781208164,18.10315016,142.75,142.68,7.0033]
[1749781208467,5.74516267,142.74,142.65,12.35798749]
[1749781208669,446.5,142.79,142.7,12.35798749]
[1749781208869,5.74741642,142.78,142.71,4.458]
[1749781209072,446.5,142.79,142.73,0.0469646]
[1749781209073,0.05024513,142.76,142.73,0.0469646]
[1749781209275,5.75841662,142.78,142.73,0.0469646]
[1749781209567,446.5,142.79,142.76,6.9995]
[1749781209762,446.5,142.79,142.72,14.71748749]
[1749781209763,43.14,142.79,142.72,14.71748749]
[1749781210165,5.77159733,142.78,142.72,14.71748749]
[1749781210362,0.04616234,142.76,142.74,0.0447647]
[1749781210565,43.14,142.79,142.74,0.0447647]
[1749781210867,12.35798749,142.77,142.74,0.0447647]
[1749781211171,5.77206615,142.76,142.74,0.0447647]
[1749781211473,210.25005364,142.75,142.74,0.0447647]
[1749781212065,217.25035364,142.75,142.74,0.0447647]
[1749781212266,223.5953082,142.75,142.74,0.0447647]
[1749781212671,217.25035364,142.75,142.74,0.0447647]
[1749781212964,222.14196791,142.75,142.74,0.0447647]
[1749781213168,228.63156011,142.75,142.74,0.0447647]
[1749781213472,7.0013,142.73,142.72,4.0]
[1749781213662,36.51551374,142.73,142.72,4.0]
[1749781213863,36.51675566,142.73,142.72,4.0]
[1749781214069,30.02437355,142.73,142.72,4.0]
[1749781214263,5.77206615,142.73,142.72,4.0]
[1749781214672,24.16491907,142.73,142.72,4.0]
[1749781214969,24.16559763,142.73,142.72,4.0]
[1749781215169,24.16557721,142.73,142.72,4.0]
[1749781215373,24.16555157,142.73,142.72,4.0]
[1749781215574,12.77336615,142.73,142.72,4.0]
[1749781215769,17.67352551,142.73,142.72,4.0]
[1749781215970,17.64322041,142.73,142.72,4.0]
[1749781216180,24.13629816,142.73,142.72,4.0]
[1749781216374,7.0018,142.72,142.71,0.04585154]
[1749781216675,30.0017079,142.72,142.71,0.04585154]
[1749781216875,20.33812802,142.72,142.71,0.04585154]
[1749781217080,6.49184691,142.77,142.71,7.04585154]
[1749781217375,43.14,142.81,142.71,0.04585154]
[1749781217573,12.35798749,142.79,142.7,43.14]
[1749781217777,4.84265523,142.78,142.72,7.0014]
[1749781217979,196.96319967,142.77,142.67,55.49798749]
[1749781218279,204.47798749,142.77,142.71,0.04871998]
[1749781218478,7.0006,142.75,142.71,0.04871998]
[1749781218676,204.47798749,142.77,142.71,0.04871998]
[1749781219276,192.12,142.77,142.71,0.04871998]
[1749781219781,204.47798749,142.77,142.71,0.04871998]
[1749781220081,12.35798749,142.75,142.71,0.04871998]
[1749781220470,7.0018,142.72,142.71,0.04871998]
[1749781220872,55.49798749,142.73,142.67,4.0]
[1749781221080,2.70174635,142.72,142.67,4.0]
[1749781221279,43.14,142.73,142.67,4.0]
[1749781221475,7.0026,142.71,142.67,11.004]
[1749781221779,0.04651039,142.7,142.68,0.04952285]
[1749781222172,50.1432,142.69,142.68,0.04952285]
[1749781222374,43.14,142.69,142.68,0.04952285]
[1749781224173,7.0053,142.65,142.61,7.007]
[1749781224376,12.35798749,142.67,142.58,43.14]
[1749781224579,43.14,142.69,142.6,12.35798749]
[1749781224775,43.14,142.69,142.68,7.0037]
[1749781225482,43.14,142.69,142.67,0.04889914]
[1749781226275,43.14,142.69,142.67,4.04889914]
[1749781226483,43.14,142.69,142.67,11.05299914]
[1749781227173,43.14,142.69,142.68,7.0037]
[1749781227373,43.14,142.69,142.67,4.04889914]
[1749781229088,43.14,142.69,142.68,7.0037]
[1749781229582,0.05145026,142.7,142.69,7.0032]
[1749781229781,4.5914,142.79,142.68,12.35798749]
[1749781229983,43.08,142.78,142.68,12.35798749]
[1749781230183,43.08,142.78,142.67,4.0]
[1749781230184,43.08,142.78,142.7,12.35798749]
[1749781230382,43.08,142.78,142.67,4.0]
[1749781230587,7.001,142.74,142.7,7.0024]
[1749781230783,43.12485849,142.73,142.71,0.05213492]
[1749781231184,12.35798749,142.72,142.67,4.0]
[1749781231589,43.12485849,142.73,142.67,4.0]
[1749781231786,7.0021,142.72,142.67,4.0]
[1749781231984,43.12485849,142.73,142.67,4.0]